bitfinex/quotes_BTCUSD_20220201
["timestamp","ask_amount","ask_price","bid_price","bid_amount"]
[1643716569417,0.001,38446.0,38443.0,0.14466438]
[1643716569617,0.001,38446.0,38443.0,0.07962938]
[1643716569817,0.001,38446.0,38444.0,0.23272888]
[1643716569818,0.00264621,38446.0,38444.0,0.23272888]
[1643716570018,0.00264621,38446.0,38445.0,0.351516]
[1643716570217,0.00264621,38446.0,38444.0,0.23272888]
[1643716570218,0.00264621,38446.0,38443.0,0.07962938]
[1643716570618,0.00264621,38446.0,38443.0,0.12962938]
[1643716570818,0.001,38446.0,38443.0,0.07962938]
[1643716571620,0.001,38446.0,38441.0,0.130074]
[1643716572018,0.32241738,38446.0,38441.0,0.130074]
[1643716572761,0.32241738,38446.0,38444.0,0.09699771]
[1643716573183,0.001,38446.0,38444.0,0.09699771]
[1643716578517,0.001,38446.0,38444.0,0.31494351]
[1643716578720,0.001,38446.0,38445.0,0.21331033]
[1643716580264,0.001,38446.0,38444.0,0.09699771]
[1643716580665,0.001,38446.0,38444.0,0.31292695]
[1643716580864,0.001,38446.0,38445.0,0.21557645]
[1643716581064,0.001,38446.0,38444.0,0.09699771]
[1643716582064,0.001,38446.0,38444.0,0.31260965]
[1643716582266,0.001,38446.0,38444.0,0.09699771]
[1643716583265,0.001,38446.0,38445.0,0.351516]
[1643716584919,0.001,38446.0,38443.0,0.065046]
[1643716585118,0.001,38446.0,38441.0,0.130074]
[1643716585320,0.001,38446.0,38441.0,0.180074]
[1643716585520,0.00265291,38446.0,38441.0,0.180074]
[1643716586219,0.00265291,38446.0,38441.0,0.130074]
[1643716586426,0.00265291,38446.0,38440.0,0.5232]
[1643716586427,0.0525,38445.0,38440.0,0.5232]
[1643716586624,0.0525,38445.0,38432.0,0.1185]
[1643716586625,0.05415291,38445.0,38432.0,0.1185]
[1643716586824,0.71077224,38444.0,38432.0,0.1185]
[1643716587021,0.0525,38443.0,38432.0,0.1185]
[1643716587222,0.12142491,38437.0,38433.0,0.0201461]
[1643716587482,0.12142491,38437.0,38432.0,0.1185]
[1643716587483,0.0525,38436.0,38431.0,0.09251327]
[1643716587684,0.21904986,38435.0,38432.0,0.23272888]
[1643716587884,0.0525,38434.0,38431.0,0.09251327]
[1643716589088,0.05415399,38434.0,38431.0,0.09251327]
[1643716590086,0.0525,38434.0,38431.0,0.09251327]
[1643716590288,0.05415399,38434.0,38430.0,0.065068]
[1643716591319,0.0525,38434.0,38430.0,0.065068]
[1643716591517,0.05408484,38434.0,38430.0,0.065068]
[1643716592218,0.05408484,38434.0,38431.0,0.08850369]
[1643716592419,0.05243085,38434.0,38431.0,0.08850369]
[1643716592618,0.05408484,38434.0,38431.0,0.13850369]
[1643716593718,0.05243085,38434.0,38431.0,0.08850369]
[1643716593918,0.05408484,38434.0,38431.0,0.08850369]
[1643716594968,0.05243085,38434.0,38431.0,0.08850369]
[1643716595168,0.05408484,38434.0,38431.0,0.08850369]
[1643716595770,0.05408484,38434.0,38430.0,0.065068]
[1643716595971,0.05243085,38434.0,38429.0,0.5611]
[1643716596371,0.05243085,38434.0,38429.0,0.05]
[1643716596372,0.05408484,38434.0,38429.0,0.05]
[1643716596771,0.05408484,38434.0,38428.0,0.00167637]
[1643716597172,0.11749985,38434.0,38427.0,0.10143823]
[1643716597372,0.18257085,38434.0,38428.0,0.00152525]
[1643716597572,0.18392266,38434.0,38428.0,0.00152525]
[1643716598472,0.18257085,38434.0,38427.0,0.10143823]
[1643716598730,0.11749985,38434.0,38433.0,0.08346284]
[1643716598925,0.05243085,38434.0,38433.0,0.08346284]
[1643716599627,0.05243085,38434.0,38429.0,0.130132]
[1643716599824,0.05243085,38434.0,38429.0,0.19519881]
[1643716600024,0.05243085,38434.0,38432.0,0.065066]
[1643716601026,0.05243085,38434.0,38432.0,0.13012886]
[1643716601226,0.05243085,38434.0,38429.0,0.130132]
[1643716602025,0.11750285,38434.0,38429.0,0.130132]
[1643716602229,0.1842299,38434.0,38430.0,0.09801129]
[1643716603282,0.18257485,38434.0,38429.0,0.130132]
[1643716603483,0.18257485,38434.0,38428.0,0.00084979]
[1643716603484,0.6558,38432.0,38428.0,0.00084979]
[1643716603684,0.117585,38431.0,38428.0,0.00084979]
[1643716604382,0.11358873,38429.0,38428.0,0.00084979]
[1643716604583,0.16608873,38429.0,38428.0,0.09475359]
[1643716604980,0.0525,38429.0,38428.0,0.09475359]
[1643716605583,0.27758116,38429.0,38428.0,0.09390378]
[1643716606219,0.0525,38429.0,38428.0,0.09390378]
[1643716606815,0.0525,38429.0,38428.0,0.69390378]
[1643716607318,0.00165599,38434.0,38428.0,0.69390378]
[1643716607516,0.00165599,38434.0,38429.0,0.05]
[1643716608117,0.17829625,38436.0,38429.0,0.05]
[1643716608419,0.17829625,38436.0,38429.0,0.11506265]
[1643716608615,0.17829625,38436.0,38431.0,0.065065]
[1643716610270,0.17829625,38436.0,38432.0,0.06506474]
[1643716611274,0.17829625,38436.0,38431.0,0.115065]
[1643716611275,0.28558875,38435.0,38431.0,0.115065]
[1643716611480,0.0525,38434.0,38428.0,0.09475357]
[1643716611676,0.22858292,38433.0,38428.0,0.09390378]
[1643716611876,0.0525,38432.0,38429.0,0.05]
[1643716612075,0.23611205,38431.0,38429.0,0.04991674]
[1643716612276,0.0525,38430.0,38429.0,0.04991674]
[1643716612678,0.0525,38430.0,38428.0,0.09558178]
[1643716612879,0.0525,38430.0,38428.0,0.09390378]
[1643716613076,0.0525,38430.0,38428.0,0.09558174]
[1643716613278,0.6128142,38430.0,38428.0,0.09558174]
[1643716613478,0.61046936,38430.0,38428.0,0.09558174]
[1643716614124,0.61046936,38430.0,38429.0,0.05]
[1643716614324,0.39667279,38430.0,38429.0,0.05]
[1643716614524,0.61120404,38430.0,38429.0,0.04292819]
[1643716614724,0.39667279,38430.0,38429.0,0.04292819]
[1643716614923,0.0525,38430.0,38429.0,0.04292819]
[1643716615726,0.0016571,38434.0,38429.0,0.04292819]
[1643716615925,0.0016571,38434.0,38430.0,0.065061]
[1643716616125,0.0016571,38434.0,38430.0,0.13012058]
[1643716616325,0.0016571,38434.0,38431.0,0.351516]
[1643716616526,0.12579736,38441.0,38429.0,0.04292819]
[1643716617025,0.38563911,38441.0,38429.0,0.04292819]
[1643716617468,0.12579736,38441.0,38431.0,0.130107]
[1643716617672,0.12579736,38441.0,38440.0,0.10285836]
[1643716619468,0.12579736,38441.0,38437.0,0.06505192]
[1643716619769,0.12579736,38441.0,38439.0,0.065052]
[1643716620177,0.065057,38443.0,38439.0,0.065052]
[1643716620369,0.00166252,38442.0,38439.0,0.065052]
[1643716620569,0.00166252,38442.0,38440.0,0.10089732]
[1643716621224,0.19062694,38443.0,38440.0,0.10089732]
[1643716621420,0.19228946,38443.0,38440.0,0.10089732]
[1643716621820,0.12723146,38443.0,38440.0,0.10089732]
[1643716622219,0.00166252,38443.0,38440.0,0.10089732]
[1643716622419,0.21401983,38444.0,38440.0,0.10089732]
[1643716622620,0.28311671,38445.0,38440.0,0.10089732]
[1643716622923,0.00166252,38443.0,38440.0,0.10089732]
[1643716623721,0.26499721,38446.0,38440.0,0.10089732]
[1643716624521,0.28481742,38442.0,38440.0,0.10089732]
[1643716624722,0.1147264,38441.0,38436.0,0.06506]
[1643716624972,0.1147264,38441.0,38439.0,0.09962665]
[1643716625374,0.1797874,38441.0,38439.0,0.09962665]
[1643716626073,0.20231918,38440.0,38439.0,0.09962665]
[1643716626373,0.1797874,38441.0,38439.0,0.09962665]
[1643716626973,0.1797874,38441.0,38434.0,0.130113]
[1643716627574,0.00166356,38439.0,38434.0,0.130113]
[1643716627774,0.065064,38438.0,38434.0,0.130113]
[1643716627974,0.065064,38438.0,38435.0,0.01870423]
[1643716628178,0.065064,38438.0,38436.0,0.0917297]
[1643716628375,0.00166356,38439.0,38436.0,0.0917297]
[1643716628576,0.0525,38440.0,38436.0,0.0917297]
[1643716628822,0.00166356,38439.0,38436.0,0.0917297]
[1643716629720,0.117561,38440.0,38436.0,0.0917297]
[1643716629922,0.00166356,38439.0,38436.0,0.0917297]
[1643716630922,0.35824407,38440.0,38436.0,0.0917297]
[1643716631121,0.00166356,38439.0,38436.0,0.0917297]
[1643716631925,0.00166356,38439.0,38433.0,0.065064]
[1643716632223,0.15640793,38435.0,38433.0,0.065064]
[1643716632872,0.20890793,38435.0,38433.0,0.065064]
[1643716633276,0.20890793,38435.0,38433.0,0.14634786]
[1643716634173,0.0525,38435.0,38433.0,0.14634786]
[1643716634574,0.67962696,38442.0,38433.0,0.14634786]
[1643716634775,0.67962696,38442.0,38433.0,0.21140564]
[1643716634776,0.0525,38441.0,38433.0,0.21140564]
[1643716634978,0.0525,38441.0,38435.0,0.065061]
[1643716635974,0.00166436,38440.0,38435.0,0.065061]
[1643716636225,0.05416436,38440.0,38435.0,0.065061]
[1643716636423,0.05416436,38440.0,38435.0,0.13011622]
[1643716636821,0.0525,38440.0,38435.0,0.13011622]
[1643716637022,0.00166436,38439.0,38435.0,0.13011622]
[1643716637221,0.0525,38438.0,38435.0,0.13011622]
[1643716638428,0.00166436,38438.0,38436.0,0.58612924]
[1643716638623,0.00166436,38438.0,38437.0,0.9319383]
[1643716638822,0.00166436,38438.0,38437.0,1.2834543]
[1643716639022,0.00166436,38438.0,38437.0,1.051516]
[1643716639423,0.001,38446.0,38438.0,0.05]
[1643716639424,0.00166436,38439.0,38438.0,0.05]
[1643716639624,0.00166436,38439.0,38438.0,1.081593]
[1643716639825,0.00166436,38439.0,38438.0,0.531593]
[1643716640072,0.00166436,38439.0,38438.0,0.5966315]
[1643716640472,0.2329383,38446.0,38438.0,0.5966315]
[1643716640771,0.00166436,38440.0,38439.0,0.09300381]
[1643716641079,0.00166436,38440.0,38439.0,0.15676617]
[1643716641671,0.14817294,38445.0,38439.0,0.15676617]
[1643716641871,0.00166436,38441.0,38440.0,0.065047]
[1643716642874,0.14817294,38445.0,38440.0,0.065047]
[1643716643072,0.00166436,38442.0,38440.0,0.065047]
[1643716644125,0.21322394,38445.0,38440.0,0.065047]
[1643716644325,0.00166436,38443.0,38440.0,0.065047]
[1643716645427,0.001,38446.0,38440.0,0.065047]
[1643716645627,0.00166436,38443.0,38441.0,0.06504685]
[1643716646026,0.00166436,38443.0,38441.0,0.19513785]
[1643716646428,0.001,38446.0,38441.0,0.19513785]
[1643716646828,0.00166436,38444.0,38441.0,0.19513785]
[1643716647231,0.00166436,38444.0,38442.0,0.065045]
[1643716647678,0.001,38446.0,38442.0,0.065045]
[1643716647878,0.00166436,38445.0,38442.0,0.065045]
[1643716648079,0.001,38446.0,38442.0,0.065045]
[1643716650683,0.001,38446.0,38443.0,0.21418235]
[1643716650881,0.001,38453.0,38443.0,0.21418235]
[1643716650882,0.04775154,38457.0,38444.0,0.75]
[1643716651082,0.06764911,38458.0,38447.0,0.13006258]
[1643716651325,0.01989757,38458.0,38447.0,0.065031]
[1643716651528,0.00083426,38452.0,38447.0,0.065031]
[1643716651722,0.00083426,38452.0,38448.0,0.08743211]
[1643716652320,0.00083426,38452.0,38449.0,0.06503022]
[1643716652521,0.11970065,38457.0,38450.0,0.065033]
[1643716652723,0.0016602,38452.0,38450.0,0.065033]
[1643716653723,0.065039,38454.0,38448.0,0.15247311]
[1643716653926,0.0016602,38453.0,38448.0,0.15247311]
[1643716654725,0.42279059,38458.0,38448.0,0.15247311]
[1643716655171,0.0016602,38452.0,38448.0,0.15247311]
[1643716656173,0.18678693,38454.0,38448.0,0.15247311]
[1643716656373,0.30196686,38452.0,38448.0,0.15247311]
[1643716656573,0.30196686,38452.0,38448.0,0.065041]
[1643716656776,0.36700986,38452.0,38448.0,0.065041]
[1643716656974,0.065043,38452.0,38448.0,0.065041]
[1643716657175,0.266252,38454.0,38448.0,0.065041]
[1643716657176,0.201209,38454.0,38448.0,0.065041]
[1643716657772,0.266248,38454.0,38448.0,0.14115692]
[1643716659525,0.266248,38454.0,38448.0,0.065041]
[1643716660226,0.18678693,38454.0,38448.0,0.065041]
[1643716661829,0.12174793,38454.0,38448.0,0.065041]
[1643716662025,0.00165596,38455.0,38448.0,0.065041]
[1643716662226,0.065035,38456.0,38455.0,0.07586614]
[1643716662481,0.0525,38456.0,38454.0,0.09538814]
[1643716663880,0.00165605,38457.0,38454.0,0.09538814]
[1643716664484,0.011,38459.0,38454.0,0.09538814]
[1643716664680,0.00165605,38457.0,38454.0,0.09538814]
[1643716665681,0.011,38459.0,38454.0,0.09538814]
[1643716665882,0.00165605,38457.0,38454.0,0.09538814]
[1643716666920,0.011,38459.0,38454.0,0.09538814]
[1643716667128,0.011,38459.0,38454.0,0.30930537]
[1643716667322,0.011,38459.0,38454.0,0.37432532]
[1643716667923,0.011,38459.0,38454.0,0.16040809]
[1643716668623,0.011,38459.0,38454.0,0.09538814]
[1643716670076,0.16244788,38459.0,38454.0,0.09538814]
[1643716670675,0.00165707,38458.0,38454.0,0.09538814]
[1643716671776,0.011,38459.0,38454.0,0.09538814]
[1643716671976,0.00165707,38458.0,38454.0,0.09538814]
[1643716672979,0.011,38459.0,38454.0,0.09538814]
[1643716673181,0.00165707,38458.0,38454.0,0.09538814]
[1643716674224,0.076031,38459.0,38454.0,0.09538814]
[1643716674422,0.00165707,38458.0,38454.0,0.09538814]
[1643716674622,0.314951,38457.0,38454.0,0.09538814]
[1643716675223,0.076031,38459.0,38454.0,0.09538814]
[1643716675426,0.011,38459.0,38454.0,0.09538814]
[1643716675624,0.00165707,38457.0,38454.0,0.09538814]
[1643716676024,0.00165707,38457.0,38452.0,0.065025]
[1643716676525,0.011,38459.0,38454.0,0.001]
[1643716676724,0.00165707,38456.0,38454.0,0.001]
[1643716677692,0.011,38459.0,38454.0,0.001]
[1643716677891,0.00165707,38457.0,38454.0,0.001]
[1643716678592,0.00165707,38457.0,38455.0,0.07791943]
[1643716678892,0.011,38459.0,38454.0,0.001]
[1643716679297,0.7,38458.0,38451.0,0.1223]
[1643716679494,0.23215344,38457.0,38447.0,0.00085756]
[1643716679693,0.0525,38456.0,38447.0,0.00085756]
[1643716679894,0.23215344,38455.0,38447.0,0.00085756]
[1643716680195,0.23215344,38455.0,38443.0,0.547]
[1643716680196,0.1453914,38448.0,38443.0,0.547]
[1643716680394,0.1453914,38448.0,38447.0,0.00085756]
[1643716680593,0.1978914,38448.0,38447.0,0.00085756]
[1643716680992,0.9781714,38448.0,38447.0,0.00085756]
[1643716681228,0.9781714,38448.0,38443.0,0.547]
[1643716681423,0.29912612,38444.0,38443.0,0.547]
[1643716681624,0.35162612,38444.0,38440.0,0.1159]
[1643716681822,0.35162612,38444.0,38438.0,0.5627]
[1643716682022,0.35162612,38444.0,38436.0,0.413]
[1643716682223,0.35162612,38444.0,38436.0,0.05]
[1643716682623,0.35162612,38444.0,38435.0,0.130096]
[1643716682624,0.21996874,38443.0,38438.0,0.00168637]
[1643716682830,0.0525,38442.0,38438.0,0.00168637]
[1643716683225,0.15717388,38442.0,38438.0,0.09141143]
[1643716683425,0.0525,38442.0,38438.0,0.09141143]
[1643716683625,0.0525,38442.0,38438.0,0.08972506]
[1643716683825,0.0525,38442.0,38439.0,0.06504637]
[1643716684025,0.0525,38442.0,38440.0,0.065043]
[1643716685078,0.0525,38442.0,38439.0,0.06504637]
[1643716685079,0.0525,38442.0,38439.0,0.06673272]
[1643716685677,0.0525,38442.0,38439.0,0.00168635]
[1643716686077,0.0525,38442.0,38438.0,0.15477606]
[1643716686276,0.0525,38442.0,38439.0,0.00168636]
[1643716687275,0.0525,38442.0,38438.0,0.21982499]
[1643716687575,0.0525,38442.0,38439.0,0.00153667]
[1643716688577,0.0525,38442.0,38438.0,0.21982499]
[1643716688578,0.0525,38442.0,38438.0,0.15477606]
[1643716688836,0.0525,38442.0,38439.0,0.00153667]
[1643716689639,0.0525,38442.0,38438.0,0.15477606]
[1643716689839,0.0525,38442.0,38439.0,0.00153667]
[1643716690938,0.0525,38442.0,38438.0,0.08972506]
[1643716691140,0.0525,38442.0,38439.0,0.00156308]
[1643716692139,0.0525,38442.0,38438.0,0.15477506]
[1643716692341,0.0525,38442.0,38439.0,0.00156308]
[1643716693376,0.0525,38442.0,38438.0,0.15477506]
[1643716693576,0.0525,38442.0,38439.0,0.00156308]
[1643716693980,0.78028,38448.0,38439.0,0.28329672]
[1643716694182,0.78028,38448.0,38441.0,0.065034]
[1643716694380,0.78028,38448.0,38442.0,0.2350826]
[1643716694781,0.78028,38448.0,38443.0,0.00085767]
[1643716694981,0.78028,38448.0,38444.0,0.06503551]
[1643716695280,0.78028,38448.0,38445.0,0.28626287]
[1643716695480,0.011,38459.0,38446.0,0.95]
[1643716695785,0.011,38459.0,38447.0,0.23339782]
[1643716695980,0.00140272,38455.0,38447.0,0.23495649]
[1643716696237,0.00140272,38455.0,38448.0,0.08173688]
[1643716696432,0.02126168,38455.0,38450.0,0.13004527]
[1643716696837,0.02126168,38455.0,38451.0,0.21634473]
[1643716697534,0.02126168,38455.0,38451.0,0.28135973]
[1643716697735,0.02126168,38455.0,38451.0,0.21634473]
[1643716697935,0.02126168,38455.0,38450.0,0.13004527]
[1643716698137,0.01985896,38455.0,38450.0,0.13004527]
[1643716698341,0.00140274,38455.0,38451.0,0.21566272]
[1643716699137,0.00140274,38455.0,38450.0,0.18004527]
[1643716699339,0.011,38459.0,38452.0,0.065025]
[1643716699539,0.00142296,38455.0,38452.0,0.065025]
[1643716699737,0.00142296,38455.0,38453.0,0.06502139]
[1643716699974,0.00142296,38455.0,38454.0,0.07877243]
[1643716700375,0.00142296,38455.0,38454.0,1.06272729]
[1643716700376,0.00087148,38455.0,38454.0,1.06272729]
[1643716700580,0.011,38459.0,38454.0,1.46424329]
[1643716700776,0.00142296,38456.0,38455.0,0.41652447]
[1643716700979,0.00142296,38456.0,38455.0,0.65047933]
[1643716701177,0.00142296,38456.0,38455.0,0.41652447]
[1643716701377,0.001,38460.0,38456.0,1.05]
[1643716701579,0.013,38469.0,38458.0,1.3]
[1643716701778,0.74811277,38465.0,38459.0,0.71546421]
[1643716701977,0.74811277,38465.0,38459.0,0.72306786]
[1643716702180,0.642049,38465.0,38460.0,1.3]
[1643716702377,0.301749,38465.0,38462.0,0.08473645]
[1643716702578,0.301749,38465.0,38463.0,0.58547086]
[1643716702780,0.301749,38465.0,38463.0,0.63547086]
[1643716702980,0.100449,38465.0,38463.0,0.401516]
[1643716703178,0.001,38468.0,38464.0,1.3]
[1643716703383,0.001,38468.0,38465.0,1.88547086]
[1643716703584,0.001,38468.0,38466.0,1.364987]
[1643716703836,0.001,38473.0,38468.0,0.75]
[1643716704033,0.001,38473.0,38469.0,0.351516]
[1643716704237,0.011,38479.0,38470.0,0.95]
[1643716704436,0.00987211,38476.0,38473.0,1.1]
[1643716704635,0.003,38481.0,38472.0,0.07768204]
[1643716704636,0.003,38481.0,38478.0,0.11619336]
[1643716704837,0.002,38483.0,38478.0,0.11619336]
[1643716704838,0.001,38483.0,38479.0,1.13547086]
[1643716705034,0.039533,38489.0,38480.0,0.06496344]
[1643716705236,0.039533,38489.0,38481.0,0.59172751]
[1643716705434,0.039533,38489.0,38482.0,0.10225662]
[1643716705634,0.039533,38489.0,38483.0,0.58547086]
[1643716705837,0.039533,38489.0,38484.0,0.36386368]
[1643716706036,0.039533,38489.0,38485.0,0.351516]
[1643716706238,0.039533,38489.0,38485.0,0.401516]
[1643716706737,0.039533,38489.0,38484.0,0.19486282]
[1643716706738,0.04119334,38489.0,38484.0,0.064954]
[1643716706936,0.04119334,38489.0,38483.0,0.549908]
[1643716707136,0.04119334,38489.0,38483.0,0.129908]
[1643716707137,0.16082508,38489.0,38483.0,0.129908]
[1643716707337,0.16082508,38489.0,38478.0,0.549941]
[1643716707584,0.16082508,38489.0,38478.0,0.42]
[1643716707783,0.16082508,38489.0,38479.0,0.09473282]
[1643716707784,0.10088708,38484.0,38479.0,0.09473282]
[1643716708583,0.10088708,38484.0,38478.0,0.484977]
[1643716708790,0.10088708,38484.0,38478.0,0.42]
[1643716709184,0.00135623,38483.0,38475.0,0.07087211]
[1643716709385,0.00135623,38483.0,38475.0,0.02087211]
[1643716709589,0.11814965,38477.0,38475.0,0.02087211]
[1643716709785,0.11814965,38477.0,38466.0,0.5637]
[1643716709786,0.55020392,38476.0,38466.0,0.5637]
[1643716709991,0.00135623,38483.0,38467.0,0.28349872]
[1643716710186,0.02087211,38476.0,38467.0,0.28349872]
[1643716710388,0.00135623,38473.0,38468.0,0.481471]
[1643716710585,0.00135623,38473.0,38469.0,0.23557052]
[1643716710785,0.00135623,38473.0,38468.0,0.481471]
[1643716710786,0.00135623,38473.0,38470.0,0.351516]
[1643716710986,0.00135623,38473.0,38471.0,0.14297727]
[1643716711234,0.00135623,38473.0,38472.0,0.651516]
[1643716711434,0.02087211,38476.0,38472.0,0.651516]
[1643716711631,0.02087211,38476.0,38472.0,0.78148]
[1643716711831,0.02087211,38476.0,38472.0,1.01705052]
[1643716712030,0.02087211,38476.0,38474.0,0.05]
[1643716712231,0.02087211,38476.0,38475.0,0.351516]
[1643716712431,0.02087211,38476.0,38472.0,0.129964]
[1643716712631,0.10034862,38474.0,38472.0,0.129964]
[1643716713032,0.10034862,38474.0,38469.0,0.194925]
[1643716713230,0.10034862,38474.0,38465.0,0.23943937]
[1643716713231,0.10034862,38474.0,38465.0,0.17999]
[1643716713631,0.0525,38473.0,38465.0,0.17999]
[1643716714035,0.00141241,38471.0,38467.0,0.10451085]
[1643716714331,0.00141241,38471.0,38467.0,0.05]
[1643716714731,0.00141241,38471.0,38465.0,0.17999]
[1643716714982,0.0525,38473.0,38465.0,0.17999]
[1643716715281,0.00141241,38471.0,38470.0,0.09860626]
[1643716715682,0.00141241,38471.0,38470.0,0.14860626]
[1643716716081,0.0525,38473.0,38470.0,0.14860626]
[1643716716283,0.00142535,38472.0,38470.0,0.14860626]
[1643716716480,0.05392535,38472.0,38470.0,0.14860626]
[1643716716884,0.00142535,38472.0,38471.0,0.351516]
[1643716717284,0.0525,38480.0,38471.0,0.351516]
[1643716717482,0.00142535,38473.0,38472.0,0.064985]
[1643716718483,0.32594777,38477.0,38472.0,0.064985]
[1643716718728,0.00140619,38474.0,38470.0,0.129971]
[1643716718926,0.00140619,38474.0,38472.0,0.74808889]
[1643716719330,0.00140619,38474.0,38473.0,0.76820158]
[1643716719526,0.00140619,38474.0,38473.0,0.67904587]
[1643716719727,0.039533,38489.0,38473.0,0.67904587]
[1643716719728,0.0525,38484.0,38473.0,0.67904587]
[1643716719926,0.00140619,38475.0,38473.0,0.84632533]
[1643716720126,0.00140619,38475.0,38474.0,0.05]
[1643716720626,0.00140619,38475.0,38474.0,0.79808889]
[1643716721127,0.00140619,38476.0,38474.0,0.74808889]
[1643716722228,0.0525,38479.0,38474.0,0.84242999]
[1643716722477,0.00141428,38477.0,38474.0,0.84242999]
[1643716723380,0.0525,38479.0,38474.0,0.89242999]
[1643716723578,0.00141428,38477.0,38474.0,0.84242999]
[1643716724484,0.26350915,38482.0,38474.0,0.89242999]
[1643716724678,0.26350915,38482.0,38476.0,0.06498]
[1643716724886,0.00141428,38477.0,38476.0,0.06498]
[1643716725078,0.00141428,38477.0,38476.0,0.74808889]
[1643716725679,0.0525,38482.0,38476.0,0.74808889]
[1643716725881,0.07705135,38489.0,38476.0,0.87804789]
[1643716726080,0.00141428,38478.0,38476.0,0.87804789]
[1643716726933,0.141287,38482.0,38476.0,0.87804789]
[1643716727134,0.00140857,38479.0,38476.0,0.87804789]
[1643716727732,0.00140857,38479.0,38476.0,0.94303189]
[1643716728132,0.141287,38482.0,38476.0,0.94303189]
[1643716728334,0.00140857,38479.0,38476.0,0.94303189]
[1643716728934,0.00140857,38479.0,38477.0,0.064979]
[1643716729336,0.00140857,38479.0,38477.0,0.81306789]
[1643716729537,0.12319197,38482.0,38480.0,0.07887599]
[1643716729743,0.22681239,38486.0,38480.0,0.07887599]
[1643716729981,0.00563345,38486.0,38480.0,0.064983]
[1643716730178,0.00563345,38486.0,38480.0,0.81307189]
[1643716730679,0.23375287,38486.0,38480.0,0.84894829]
[1643716730880,0.00140953,38485.0,38480.0,0.84894829]
[1643716731277,0.0525,38484.0,38480.0,0.84894829]
[1643716732080,0.05390953,38484.0,38480.0,0.84894829]
[1643716732482,0.05390953,38484.0,38480.0,0.74808889]
[1643716732885,0.0525,38484.0,38480.0,0.74808889]
[1643716733084,0.23375287,38486.0,38480.0,0.87804389]
[1643716733284,0.00140953,38484.0,38480.0,0.87804389]
[1643716734229,0.36166627,38486.0,38480.0,1.00798889]
[1643716734427,0.00140935,38484.0,38480.0,1.00798889]
[1643716734631,0.00140935,38484.0,38481.0,0.74808889]
[1643716734831,0.00140935,38484.0,38480.0,0.74808889]
[1643716735227,0.00140935,38484.0,38481.0,0.74808889]
[1643716735428,0.45456065,38486.0,38480.0,0.74808889]
[1643716735429,0.50706065,38486.0,38480.0,0.74808889]
[1643716735629,0.00140935,38484.0,38480.0,0.74808889]
[1643716735829,0.0525,38483.0,38481.0,0.74808889]
[1643716736029,0.39935745,38482.0,38480.0,0.74808889]
[1643716736230,0.0525,38481.0,38480.0,0.74808889]
[1643716736430,0.39935745,38482.0,38481.0,0.69558889]
[1643716736630,0.44685745,38482.0,38480.0,0.69558889]
[1643716736930,0.44685745,38482.0,38481.0,0.69558889]
[1643716736931,0.4482668,38482.0,38481.0,0.69558889]
[1643716737229,0.4482668,38482.0,38480.0,0.69558889]
[1643716737493,0.4482668,38482.0,38481.0,0.69558889]
[1643716737888,0.4482668,38482.0,38480.0,0.69558889]
[1643716737889,0.44685745,38482.0,38480.0,0.69558889]
[1643716738089,0.49685745,38482.0,38481.0,0.69558889]
[1643716738290,0.0525,38482.0,38481.0,0.69558889]
[1643716738488,0.0525,38482.0,38480.0,0.69558889]
[1643716738687,0.0525,38482.0,38470.0,0.35199279]
[1643716738688,0.0525,38482.0,38481.0,0.69558889]
[1643716739087,0.0525,38482.0,38480.0,0.69558889]
[1643716739287,0.0525,38482.0,38478.0,0.08566555]
[1643716739288,0.0525,38482.0,38481.0,0.69558889]
[1643716739688,0.00141161,38483.0,38480.0,0.69558889]
[1643716739889,0.00141161,38483.0,38481.0,0.69558889]
[1643716740288,0.3216948,38488.0,38480.0,0.69558889]
[1643716740491,0.00140901,38484.0,38481.0,0.69558889]
[1643716740889,0.00140901,38484.0,38480.0,0.76056689]
[1643716741089,0.00140901,38484.0,38481.0,0.69558889]
[1643716741327,0.09873017,38486.0,38481.0,0.69558889]
[1643716741525,0.0525,38488.0,38481.0,0.69558889]
[1643716741526,0.00140901,38484.0,38481.0,0.21980607]
[1643716741729,0.00140901,38484.0,38482.0,0.064974]
[1643716742224,0.00140901,38484.0,38482.0,0.97988315]
[1643716742425,0.00140901,38484.0,38482.0,0.76056289]
[1643716742630,0.039533,38489.0,38486.0,0.08375491]
[1643716742825,0.039533,38489.0,38483.0,0.21957585]
[1643716743024,0.039533,38489.0,38483.0,0.064969]
[1643716743224,0.039533,38489.0,38483.0,0.28931206]
[1643716743428,0.039533,38489.0,38483.0,0.98490095]
[1643716743625,0.039533,38489.0,38484.0,0.25985754]
[1643716743825,0.039533,38489.0,38485.0,0.25419353]
[1643716744025,0.039533,38489.0,38486.0,0.064957]
[1643716744026,0.00140901,38488.0,38486.0,0.064957]
[1643716744325,0.00140901,38488.0,38487.0,0.66172119]
[1643716744526,0.00140901,38488.0,38487.0,0.99425808]
[1643716744975,0.039533,38489.0,38487.0,0.99425808]
[1643716745178,0.04094596,38489.0,38487.0,0.77550858]
[1643716746177,0.039533,38489.0,38487.0,0.77550858]
[1643716748079,0.039533,38489.0,38487.0,0.69558889]
[1643716748927,0.17267514,38489.0,38487.0,0.69558889]
[1643716749326,0.039533,38489.0,38487.0,0.69558889]
[1643716750533,0.039533,38489.0,38487.0,0.76054789]
[1643716750729,0.039533,38489.0,38488.0,0.57139563]
[1643716751128,0.039533,38489.0,38488.0,1.26698452]
[1643716751329,0.039533,38489.0,38488.0,0.91546852]
[1643716752577,0.039533,38489.0,38488.0,0.69558889]
[1643716752983,0.039533,38489.0,38488.0,0.91517396]
[1643716754581,0.039533,38489.0,38488.0,0.69558889]
[1643716754780,0.039533,38489.0,38488.0,0.93012201]
[1643716754980,0.039533,38489.0,38488.0,1.04710489]
[1643716758230,0.03945484,38489.0,38488.0,1.04710489]
[1643716759332,0.01968717,38493.0,38489.0,1.05]
[1643716759535,0.01968717,38493.0,38490.0,0.65029558]
[1643716759729,0.01968717,38493.0,38491.0,0.06494]
[1643716759977,0.01968717,38493.0,38492.0,0.351516]
[1643716760380,0.01968717,38493.0,38492.0,1.04710489]
[1643716760580,0.01968717,38493.0,38492.0,0.69558889]
[1643716761480,0.01968717,38493.0,38492.0,0.91540991]
[1643716761882,0.01968717,38493.0,38492.0,0.96540991]
[1643716762985,0.01968717,38493.0,38492.0,0.69558889]
[1643716767257,0.01968717,38493.0,38492.0,0.78133098]
[1643716769783,0.01968717,38493.0,38492.0,0.78147926]